fUST/lending_fUST_20250709
["ID","MTS","AMOUNT","RATE_DAILY","PERIOD"]
[370445814,1752022248015,-500.0,0.00020614,2]
[370445815,1752022248025,-500.0,0.00020631,2]
[370445816,1752022248034,-151.0,0.00020631,2]
[370445817,1752022248043,-198.0,0.00020631,2]
[370445818,1752022248052,-151.0,0.00020631,2]
[370445819,1752022248062,-199.19616753,0.00020631,2]
[370445820,1752022248072,-151.0,0.00020631,2]
[370445821,1752022248081,-151.0,0.00020631,2]
[370445822,1752022248091,-151.0,0.00020631,2]
[370445823,1752022248100,-151.0,0.00020631,2]
[370445824,1752022248109,-151.0,0.00020631,2]
[370445825,1752022248119,-151.0,0.00020631,2]
[370445826,1752022248128,-151.0,0.00020631,2]
[370445827,1752022248138,-198.72056785,0.00020631,2]
[370445828,1752022248147,-500.0,0.00020631,2]
[370445829,1752022248156,-151.0,0.00020631,2]
[370445830,1752022248166,-151.0,0.00020631,2]
[370445831,1752022248176,-1000.0,0.00020653,2]
[370445832,1752022248185,-500.0,0.00020653,2]
[370445833,1752022248198,-500.0,0.00020658,2]
[370445834,1752022248207,-264.95655386,0.00020658,2]
[370445835,1752022248216,-151.0,0.00020658,2]
[370445836,1752022248225,-151.0,0.00020658,2]
[370445837,1752022248235,-198.0,0.00020658,2]
[370445838,1752022248245,-151.0,0.00020658,2]
[370445839,1752022248255,-246.04138386,0.00020658,2]
[370445840,1752022248265,-281.44887311,0.00020658,2]
[370445841,1752022248275,-151.0,0.00020658,2]
[370445842,1752022248285,-194.68294943,0.00020658,2]
[370445843,1752022248294,-246.8883299,0.00020658,2]
[370445844,1752022248304,-175.6042664,0.00020658,2]
[370445845,1752022248314,-198.0,0.00020658,2]
[370445846,1752022248325,-500.0,0.00020686,2]
[370445847,1752022248334,-259.98735537,0.00020686,2]
[370445848,1752022248344,-151.0,0.00020686,2]
[370445849,1752022248353,-151.0,0.00020686,2]
[370445850,1752022248364,-151.0,0.000207,4]
[370445851,1752022248374,-500.97963928,0.00020701,2]
[370445852,1752022248383,-500.91232149,0.00020701,2]
[370445853,1752022248393,-500.0,0.00020701,2]
[370445854,1752022248402,-500.0,0.00020713,2]
[370445855,1752022248411,-245.0,0.00020713,2]
[370445856,1752022248421,-245.0,0.00020713,2]
[370445857,1752022248430,-967.0,0.00020731,2]
[370445858,1752022248440,-646.0,0.00020731,2]
[370445859,1752022248449,-2153.0,0.00020731,2]
[370445860,1752022248459,-500.0,0.0002074,2]
[370445861,1752022248468,-715.419,0.00020757,2]
[370445862,1752022248478,-500.0,0.00020768,2]
[370445863,1752022248489,-500.0,0.00020795,2]
[370445864,1752022248502,-460.0,0.00020821,2]
[370445865,1752022248511,-460.0,0.00020821,2]
[370445866,1752022248521,-460.0,0.00020821,2]
[370445867,1752022248531,-460.0,0.00020821,2]
[370445868,1752022248540,-460.0,0.00020821,2]
[370445869,1752022248549,-460.0,0.00020821,2]
[370445870,1752022248559,-460.0,0.00020821,2]
[370445871,1752022248569,-460.0,0.00020821,2]
[370445872,1752022248579,-460.0,0.00020821,2]
[370445873,1752022248589,-460.0,0.00020821,2]
[370445874,1752022248598,-460.0,0.00020821,2]
[370445875,1752022248608,-597.53,0.00020821,2]
[370445876,1752022248617,-480.94,0.00020821,2]
[370445877,1752022248626,-460.0,0.00020821,2]
[370445878,1752022248636,-460.0,0.00020821,2]
[370445879,1752022248645,-668.49,0.00020821,2]
[370445880,1752022248655,-2621.36,0.00020821,2]
[370445881,1752022248770,-460.0,0.00020821,2]
[370445882,1752022248794,-307.72632038,0.00020821,2]
[370445883,1752022248805,-884.69,0.00020821,2]
[370445884,1752022248816,-460.0,0.00020821,2]
[370445885,1752022248825,-853.8,0.00020821,2]
[370445886,1752022248835,-894.0,0.00020821,2]
[370445887,1752022248844,-460.0,0.00020821,2]
[370445888,1752022248853,-460.0,0.00020821,2]
[370445889,1752022248862,-504.34,0.00020821,2]
[370445890,1752022248871,-958.74,0.00020821,2]
[370445891,1752022248880,-2151.52,0.00020821,2]
[370445892,1752022248890,-1547.59,0.00020821,2]
[370445893,1752022248899,-460.0,0.00020821,2]
[370445894,1752022248908,-691.36,0.00020821,2]
[370445895,1752022248918,-460.0,0.00020821,2]
[370445896,1752022248927,-460.0,0.00020821,2]
[370445897,1752022248937,-460.0,0.00020821,2]
[370445898,1752022248947,-743.35,0.00020821,2]
[370445899,1752022248956,-460.0,0.00020821,2]
[370445900,1752022248966,-556.29,0.00020821,2]
[370445901,1752022248975,-460.0,0.00020821,2]
[370445902,1752022248985,-460.0,0.00020821,2]
[370445903,1752022248995,-460.0,0.00020821,2]
[370445904,1752022249004,-460.0,0.00020821,2]
[370445905,1752022249014,-623.43,0.00020821,2]
[370445906,1752022249023,-460.0,0.00020821,2]
[370445907,1752022249033,-460.0,0.00020821,2]
[370445908,1752022249042,-572.26,0.00020821,2]
[370445909,1752022249051,-1517.23,0.00020821,2]
[370445910,1752022249062,-1862.58,0.00020821,2]
[370445911,1752022249070,-460.0,0.00020821,2]
[370445912,1752022249089,-460.0,0.00020821,2]
[370445913,1752022249103,-1505.63,0.00020821,2]
[370445914,1752022249113,-460.0,0.00020821,2]
[370445915,1752022249124,-2085.56,0.00020821,2]
[370445916,1752022249134,-460.0,0.00020821,2]
[370445917,1752022249144,-524.0,0.00020821,2]
[370445918,1752022249154,-460.0,0.00020821,2]
[370445919,1752022249165,-460.0,0.00020821,2]
[370445920,1752022249175,-460.0,0.00020821,2]
[370445921,1752022249185,-460.0,0.00020821,2]
[370445922,1752022249198,-551.72,0.00020821,2]
[370445923,1752022249208,-460.0,0.00020821,2]
[370445924,1752022249218,-1248.43,0.00020821,2]
[370445925,1752022249228,-528.86,0.00020821,2]
[370445926,1752022249239,-992.21,0.00020821,2]
[370445927,1752022249249,-550.56,0.00020821,2]
[370445928,1752022249259,-460.0,0.00020821,2]
[370445929,1752022249271,-948.77,0.00020821,2]
[370445930,1752022249281,-2867.37,0.00020821,2]
[370445931,1752022249291,-460.0,0.00020821,2]
[370445932,1752022249301,-460.0,0.00020821,2]
[370445933,1752022249311,-460.0,0.00020821,2]
[370445934,1752022249321,-161.76160232,0.00020821,2]
[370445935,1752022249331,-500.52,0.00020821,2]
[370445936,1752022249341,-460.0,0.00020821,2]
[370445937,1752022249351,-771.68,0.00020821,2]
[370445938,1752022249362,-460.0,0.00020821,2]
[370445939,1752022249372,-460.0,0.00020821,2]
[370445940,1752022249382,-460.0,0.00020821,2]
[370445941,1752022249392,-460.0,0.00020821,2]
[370445942,1752022249401,-500.0,0.00020823,2]
[370445943,1752022249411,-1719.0,0.0002083,2]
[370445944,1752022249421,-500.0,0.0002085,2]
[370445945,1752022249431,-150.912,0.00020857,2]
[370445946,1752022249441,-168.0,0.00020864,2]
[370445947,1752022249451,-500.0,0.00020877,2]
[370445948,1752022249460,-420.0,0.00020899,2]
[370445949,1752022249470,-151.0,0.000209,4]
[370445950,1752022249480,-5226.60357895,0.000209,4]
[370445951,1752022249490,-500.0,0.00020905,2]
[370445952,1752022249500,-168.0,0.00020923,2]
[370445953,1752022249510,-500.0,0.00020932,2]
[370445954,1752022249519,-500.0,0.0002096,2]
[370445955,1752022249528,-500.0,0.00020987,2]
[370445956,1752022249538,-168.0,0.00020987,2]
[370445957,1752022249547,-150.0,0.00021,2]
[370445958,1752022249557,-151.0,0.00021,3]
[370445959,1752022249568,-168.0,0.00021011,2]
[370445960,1752022249578,-5888.0,0.00021067,2]
[370445961,1752022249587,-151.0,0.00021072,2]
[370445962,1752022249597,-5226.60357873,0.00021072,4]
[370445963,1752022249606,-180.0,0.00021084,2]
[370445964,1752022249616,-151.0,0.00021095,2]
[370445965,1752022249626,-151.0,0.00021095,2]
[370445966,1752022249635,-151.0,0.00021095,2]
[370445967,1752022249646,-151.0,0.00021095,2]
[370445968,1752022249655,-460.0,0.00021095,2]
[370445969,1752022249665,-460.0,0.00021095,2]
[370445970,1752022249675,-151.0,0.00021095,2]
[370445971,1752022249685,-151.0,0.00021095,2]
[370445972,1752022249694,-300.708045,0.00021095,2]
[370445973,1752022249703,-151.266482,0.00021095,2]
[370445974,1752022249713,-460.0,0.00021095,2]
[370445975,1752022249723,-460.0,0.00021095,2]
[370445976,1752022249732,-366.43,0.00021095,2]
[370445977,1752022249742,-460.0,0.00021095,2]
[370445978,1752022249752,-460.0,0.00021095,2]
[370445979,1752022249762,-460.0,0.00021095,2]
[370445980,1752022249771,-460.0,0.00021095,2]
[370445981,1752022249781,-460.0,0.00021095,2]
[370445982,1752022249790,-460.0,0.00021095,2]
[370445983,1752022249800,-201.23135488,0.00021095,2]
[370445984,1752022249810,-480.94,0.00021095,2]
[370445985,1752022249820,-460.0,0.00021095,2]
[370445986,1752022249829,-460.0,0.00021095,2]
[370445987,1752022249839,-668.49,0.00021095,2]
[370445988,1752022249849,-2621.36,0.00021095,2]
[370445989,1752022249858,-460.0,0.00021095,2]
[370445990,1752022249867,-884.69,0.00021095,2]
[370445991,1752022249877,-460.0,0.00021095,2]
[370445992,1752022249886,-853.8,0.00021095,2]
[370445993,1752022249896,-894.0,0.00021095,2]
[370445994,1752022249905,-460.0,0.00021095,2]
[370445995,1752022249914,-460.0,0.00021095,2]
[370445996,1752022249923,-504.34,0.00021095,2]
[370445997,1752022249933,-958.74,0.00021095,2]
[370445998,1752022249943,-2151.52,0.00021095,2]
[370445999,1752022249952,-1547.59,0.00021095,2]
[370446000,1752022249962,-460.0,0.00021095,2]
[370446001,1752022249971,-691.36,0.00021095,2]
[370446002,1752022249981,-460.0,0.00021095,2]
[370446003,1752022249991,-460.0,0.00021095,2]
[370446004,1752022250002,-743.35,0.00021095,2]
[370446005,1752022250012,-460.0,0.00021095,2]
[370446006,1752022250023,-556.29,0.00021095,2]
[370446007,1752022250033,-460.0,0.00021095,2]
[370446008,1752022250042,-369.92683422,0.00021095,2]
[370446009,1752022250052,-460.0,0.00021095,2]
[370446010,1752022250062,-460.0,0.00021095,2]
[370446011,1752022250072,-623.43,0.00021095,2]
[370446012,1752022250083,-460.0,0.00021095,2]
[370446013,1752022250094,-460.0,0.00021095,2]
[370446014,1752022250104,-572.26,0.00021095,2]
[370446015,1752022250115,-1517.23,0.00021095,2]
[370446016,1752022250124,-1862.58,0.00021095,2]
[370446017,1752022250139,-413.35,0.00021095,2]
[370446018,1752022250149,-1505.63,0.00021095,2]
[370446019,1752022250159,-402.56039192,0.00021095,2]
[370446020,1752022250170,-2085.56,0.00021095,2]
[370446021,1752022250180,-454.99788546,0.00021095,2]
[370446022,1752022250193,-524.0,0.00021095,2]
[370446023,1752022250203,-460.0,0.00021095,2]
[370446024,1752022250214,-460.0,0.00021095,2]
[370446025,1752022250223,-460.0,0.00021095,2]
[370446026,1752022250234,-460.0,0.00021095,2]
[370446027,1752022250244,-551.72,0.00021095,2]
[370446028,1752022250255,-460.0,0.00021095,2]
[370446029,1752022250266,-1248.43,0.00021095,2]
[370446030,1752022250277,-992.21,0.00021095,2]
[370446031,1752022250287,-550.56,0.00021095,2]
[370446032,1752022250298,-460.0,0.00021095,2]
[370446033,1752022250307,-948.77,0.00021095,2]
[370446034,1752022250317,-2867.37,0.00021095,2]
[370446035,1752022250326,-460.0,0.00021095,2]
[370446036,1752022250335,-460.0,0.00021095,2]
[370446037,1752022250345,-460.0,0.00021095,2]
[370446038,1752022250355,-500.52,0.00021095,2]
[370446039,1752022250365,-460.0,0.00021095,2]
[370446040,1752022250374,-771.68,0.00021095,2]
[370446041,1752022250384,-460.0,0.00021095,2]
[370446042,1752022250394,-460.0,0.00021095,2]
[370446043,1752022250403,-460.0,0.00021095,2]
[370446044,1752022250412,-460.0,0.00021095,2]
[370446045,1752022250421,-151.0,0.000211,4]
[370446046,1752022250431,-641.0,0.000211,2]
[370446047,1752022250440,-157.0,0.00021106,2]
[370446048,1752022250451,-159.0,0.00021106,2]
[370446049,1752022250461,-159.0,0.00021106,2]
[370446050,1752022250471,-159.0,0.00021106,2]
[370446051,1752022250480,-159.0,0.00021106,2]
[370446052,1752022250490,-159.0,0.00021106,2]
[370446053,1752022250500,-159.0,0.00021106,2]
[370446054,1752022250509,-159.0,0.00021106,2]
[370446055,1752022250519,-159.0,0.00021106,2]
[370446056,1752022250529,-159.0,0.00021106,2]
[370446057,1752022250539,-159.0,0.00021106,2]
[370446058,1752022250548,-159.0,0.00021106,2]
[370446059,1752022250558,-169.36834577,0.00021106,2]
[370446060,1752022250568,-168.0,0.00021131,2]
[370446061,1752022250578,-500.0,0.00021162,2]
[370446062,1752022250588,-1000.0,0.00021162,2]
[370446063,1752022250597,-1000.0,0.00021162,2]
[370446064,1752022250608,-1000.0,0.00021162,2]
[370446065,1752022250618,-491.04253568,0.00021162,2]
[370446066,1752022250628,-1000.0,0.00021162,2]
[370446067,1752022250638,-356.04404209,0.00021162,2]
[370446068,1752022250647,-1000.0,0.00021162,2]
[370446069,1752022250658,-1000.0,0.00021162,2]
[370446070,1752022250669,-814.5323604,0.00021162,2]
[370446071,1752022250680,-1000.0,0.00021162,2]
[370446072,1752022250689,-500.0,0.00021164,14]
[370446073,1752022250699,-250.63303488,0.00021181,2]
[370446074,1752022250710,-151.0,0.000212,3]
[370446075,1752022250722,-151.0,0.000212,3]
[370446076,1752022250732,-159.4673789,0.00021205,2]
[370446077,1752022250741,-306.0,0.00021205,2]
[370446078,1752022250751,-177.7959578,0.00021205,2]
[370446079,1752022250760,-177.7959578,0.00021205,2]
[370446080,1752022250770,-172.9957753,0.00021205,2]
[370446081,1752022250779,-5226.60357873,0.00021245,4]
[370446082,1752022250788,-1000.0,0.00021249,2]
[370446083,1752022250798,-178.372249,0.00021276,2]
[370446084,1752022250808,-385.0,0.00021323,2]
[370446085,1752022250818,-151.0,0.00021369,2]
[370446086,1752022250827,-151.0,0.00021369,2]
[370446087,1752022250837,-460.0,0.00021369,2]
[370446088,1752022250846,-460.0,0.00021369,2]
[370446089,1752022250856,-460.0,0.00021369,2]
[370446090,1752022250866,-460.0,0.00021369,2]
[370446091,1752022250875,-460.0,0.00021369,2]
[370446092,1752022250885,-460.0,0.00021369,2]
[370446093,1752022250895,-460.0,0.00021369,2]
[370446094,1752022250906,-460.0,0.00021369,2]
[370446095,1752022250917,-460.0,0.00021369,2]
[370446096,1752022250929,-460.0,0.00021369,2]
[370446097,1752022250939,-480.94,0.00021369,2]
[370446098,1752022250949,-460.0,0.00021369,2]
[370446099,1752022250959,-227.50835549,0.00021369,2]
[370446100,1752022250968,-668.49,0.00021369,2]
[370446101,1752022250977,-2621.36,0.00021369,2]
[370446102,1752022250987,-460.0,0.00021369,2]
[370446103,1752022250999,-884.69,0.00021369,2]
[370446104,1752022251008,-460.0,0.00021369,2]
[370446105,1752022251018,-853.8,0.00021369,2]
[370446106,1752022251027,-894.0,0.00021369,2]
[370446107,1752022251036,-460.0,0.00021369,2]
[370446108,1752022251046,-504.34,0.00021369,2]
[370446109,1752022251055,-958.74,0.00021369,2]
[370446110,1752022251065,-2151.52,0.00021369,2]
[370446111,1752022251074,-1547.59,0.00021369,2]
[370446112,1752022251084,-460.0,0.00021369,2]
[370446113,1752022251093,-691.36,0.00021369,2]
[370446114,1752022251103,-460.0,0.00021369,2]
[370446115,1752022251113,-460.0,0.00021369,2]
[370446116,1752022251122,-743.35,0.00021369,2]
[370446117,1752022251131,-556.29,0.00021369,2]
[370446118,1752022251140,-487.24,0.00021369,2]
[370446119,1752022251150,-460.0,0.00021369,2]
[370446120,1752022251159,-460.0,0.00021369,2]
[370446121,1752022251170,-623.43,0.00021369,2]
[370446122,1752022251180,-538.58,0.00021369,2]
[370446123,1752022251195,-558.73,0.00021369,2]
[370446124,1752022251207,-572.26,0.00021369,2]
[370446125,1752022251217,-1517.23,0.00021369,2]
[370446126,1752022251227,-1862.58,0.00021369,2]
[370446127,1752022251380,-1505.63,0.00021369,2]
[370446128,1752022251390,-2085.56,0.00021369,2]
[370446129,1752022251400,-524.0,0.00021369,2]
[370446130,1752022251410,-460.0,0.00021369,2]
[370446131,1752022251420,-460.0,0.00021369,2]
[370446132,1752022251431,-460.0,0.00021369,2]
[370446133,1752022251441,-551.72,0.00021369,2]
[370446134,1752022251450,-460.0,0.00021369,2]
[370446135,1752022251460,-1248.43,0.00021369,2]
[370446136,1752022251470,-992.21,0.00021369,2]
[370446137,1752022251480,-550.56,0.00021369,2]
[370446138,1752022251489,-948.77,0.00021369,2]
[370446139,1752022251498,-2867.37,0.00021369,2]
[370446140,1752022251508,-460.0,0.00021369,2]
[370446141,1752022251517,-460.0,0.00021369,2]
[370446142,1752022251527,-460.0,0.00021369,2]
[370446143,1752022251537,-500.52,0.00021369,2]
[370446144,1752022251547,-460.0,0.00021369,2]
[370446145,1752022251558,-771.68,0.00021369,2]
[370446146,1752022251569,-460.0,0.00021369,2]
[370446147,1752022251579,-460.0,0.00021369,2]
[370446148,1752022251589,-576.1435385,0.0002137,2]
[370446149,1752022251599,-576.1435385,0.0002137,2]
[370446150,1752022251610,-168.0,0.00021395,2]
[370446151,1752022251619,-151.0,0.000214,4]
[370446152,1752022251629,-215.0738,0.00021403,2]
[370446153,1752022251640,-168.0,0.00021414,2]
[370446154,1752022251651,-151.0,0.00021417,2]
[370446155,1752022251662,-151.0,0.00021417,2]
[370446156,1752022251672,-5226.60357873,0.00021417,5]
[370446157,1752022251682,-163.082623,0.00021453,4]
[370446158,1752022251691,-428.6046964,0.00021479,2]
[370446159,1752022251702,-428.6046964,0.00021479,2]
[370446160,1752022251711,-428.6046964,0.00021479,2]
[370446161,1752022251720,-428.6046964,0.00021479,2]
[370446162,1752022251730,-428.6046964,0.00021479,2]
[370446163,1752022251739,-428.6046964,0.00021479,2]
[370446164,1752022251749,-428.6046964,0.00021479,2]
[370446165,1752022251758,-428.6046964,0.00021479,2]
[370446166,1752022251768,-366.6942869,0.00021479,2]
[370446167,1752022251777,-2390.84432941,0.000215,2]
[370446168,1752022251787,-151.0,0.000215,3]
[370446169,1752022251796,-385.0,0.0002154,2]
[370446170,1752022251805,-157.0,0.00021543,2]
[370446171,1752022251815,-154.0,0.00021543,2]
[370446172,1752022251824,-154.0,0.00021543,2]
[370446173,1752022251834,-154.0,0.00021543,2]
[370446174,1752022251844,-318.0,0.00021543,2]
[370446175,1752022251854,-318.0,0.00021543,2]
[370446176,1752022251863,-318.0,0.00021543,2]
[370446177,1752022251872,-318.0,0.00021543,2]
[370446178,1752022251882,-318.0,0.00021543,2]
[370446179,1752022251892,-318.0,0.00021543,2]
[370446180,1752022251901,-318.0,0.00021543,2]
[370446181,1752022251911,-318.0,0.00021543,2]
[370446182,1752022251920,-318.0,0.00021543,2]
[370446183,1752022251930,-318.0,0.00021543,2]
[370446184,1752022251939,-318.0,0.00021543,2]
[370446185,1752022251949,-318.0,0.00021543,2]
[370446186,1752022251959,-318.0,0.00021543,2]
[370446187,1752022251969,-318.0,0.00021543,2]
[370446188,1752022251980,-318.0,0.00021543,2]
[370446189,1752022251991,-318.0,0.00021543,2]
[370446190,1752022252001,-318.0,0.00021543,2]
[370446191,1752022252011,-318.0,0.00021543,2]
[370446192,1752022252023,-318.0,0.00021543,2]
[370446193,1752022252032,-318.0,0.00021543,2]
[370446194,1752022252042,-318.0,0.00021543,2]
[370446195,1752022252051,-318.0,0.00021543,2]
[370446196,1752022252061,-318.0,0.00021543,2]
[370446197,1752022252072,-318.0,0.00021543,2]
[370446198,1752022252082,-318.0,0.00021543,2]
[370446199,1752022252093,-318.0,0.00021543,2]
[370446200,1752022252103,-318.0,0.00021543,2]
[370446201,1752022252113,-318.0,0.00021543,2]
[370446202,1752022252123,-318.0,0.00021543,2]
[370446203,1752022252132,-318.0,0.00021543,2]
[370446204,1752022252143,-319.92909851,0.00021543,2]
[370446205,1752022252153,-151.0,0.00021543,2]
[370446206,1752022252164,-151.0,0.00021543,2]
[370446207,1752022252173,-151.0,0.00021543,2]
[370446208,1752022252183,-151.0,0.00021543,2]
[370446209,1752022252196,-5226.60357873,0.0002159,5]
[370446210,1752022252205,-151.0,0.0002159,2]
[370446211,1752022252215,-151.0,0.000216,4]
[370446212,1752022252226,-151.0,0.000216,4]
[370446213,1752022252236,-151.0,0.00021643,2]
[370446214,1752022252246,-220.51284465,0.00021643,2]
[370446215,1752022252255,-229.22273146,0.00021643,2]
[370446216,1752022252265,-460.0,0.00021643,2]
[370446217,1752022252276,-460.0,0.00021643,2]
[370446218,1752022252286,-460.0,0.00021643,2]
[370446219,1752022252296,-460.0,0.00021643,2]
[370446220,1752022252305,-460.0,0.00021643,2]
[370446221,1752022252315,-460.0,0.00021643,2]
[370446222,1752022252325,-460.0,0.00021643,2]
[370446223,1752022252335,-460.0,0.00021643,2]
[370446224,1752022252344,-480.94,0.00021643,2]
[370446225,1752022252354,-460.0,0.00021643,2]
[370446226,1752022252366,-668.49,0.00021643,2]
[370446227,1752022252376,-2621.36,0.00021643,2]
[370446228,1752022252386,-460.0,0.00021643,2]
[370446229,1752022252396,-884.69,0.00021643,2]
[370446230,1752022252406,-460.0,0.00021643,2]
[370446231,1752022252417,-853.8,0.00021643,2]
[370446232,1752022252427,-894.0,0.00021643,2]
[370446233,1752022252436,-460.0,0.00021643,2]
[370446234,1752022252446,-504.34,0.00021643,2]
[370446235,1752022252455,-2151.52,0.00021643,2]
[370446236,1752022252465,-958.74,0.00021643,2]
[370446237,1752022252474,-1547.59,0.00021643,2]
[370446238,1752022252483,-460.0,0.00021643,2]
[370446239,1752022252493,-691.36,0.00021643,2]
[370446240,1752022252502,-460.0,0.00021643,2]
[370446241,1752022252512,-556.29,0.00021643,2]
[370446242,1752022252522,-743.35,0.00021643,2]
[370446243,1752022252533,-460.0,0.00021643,2]
[370446244,1752022252543,-460.0,0.00021643,2]
[370446245,1752022252552,-623.43,0.00021643,2]
[370446246,1752022252562,-572.26,0.00021643,2]
[370446247,1752022252573,-1517.23,0.00021643,2]
[370446248,1752022252582,-1862.58,0.00021643,2]
[370446249,1752022252592,-1505.63,0.00021643,2]
[370446250,1752022252601,-2085.56,0.00021643,2]
[370446251,1752022252610,-524.0,0.00021643,2]
[370446252,1752022252620,-460.0,0.00021643,2]
[370446253,1752022252629,-460.0,0.00021643,2]
[370446254,1752022252639,-460.0,0.00021643,2]
[370446255,1752022252648,-551.72,0.00021643,2]
[370446256,1752022252658,-288.17526949,0.00021643,2]
[370446257,1752022252667,-1248.43,0.00021643,2]
[370446258,1752022252676,-992.21,0.00021643,2]
[370446259,1752022252687,-550.56,0.00021643,2]
[370446260,1752022252696,-948.77,0.00021643,2]
[370446261,1752022252706,-2867.37,0.00021643,2]
[370446262,1752022252717,-460.0,0.00021643,2]
[370446263,1752022252726,-460.0,0.00021643,2]
[370446264,1752022252736,-460.0,0.00021643,2]
[370446265,1752022252745,-500.52,0.00021643,2]
[370446266,1752022252755,-460.0,0.00021643,2]
[370446267,1752022252764,-771.68,0.00021643,2]
[370446268,1752022252775,-460.0,0.00021643,2]
[370446269,1752022252785,-576.1435385,0.00021644,2]
[370446270,1752022252795,-170.0,0.00021674,2]
[370446271,1752022252805,-151.0,0.000217,4]
[370446272,1752022252815,-500.0,0.0002171,2]
[370446273,1752022252824,-1500.0,0.0002171,2]
[370446274,1752022252834,-500.0,0.0002171,2]
[370446275,1752022252845,-500.0,0.0002171,2]
[370446276,1752022252855,-1500.0,0.0002171,2]
[370446277,1752022252868,-5226.60357873,0.00021762,5]
[370446278,1752022252879,-250.63303488,0.00021791,2]
[370446279,1752022252888,-315.29,0.00021794,15]
[370446280,1752022252897,-1500.0,0.00021797,2]
[370446281,1752022252907,-357734.0839369,0.000218,2]
[370446282,1752022252917,-385.0,0.00021855,2]
[370446283,1752022252927,-12500.0,0.00021882,2]
[370446284,1752022252935,-151.0,0.00021882,2]
[370446285,1752022252945,-10269.52045196,0.00021891,2]
[370446286,1752022253099,-2230.47954804,0.00021891,2]
[370446287,1752022253109,-228.55565946,0.00021891,2]
[370446288,1752022253119,-151.0,0.00021891,2]
[370446289,1752022253129,-500.0,0.00021891,2]
[370446290,1752022253138,-500.0,0.00021891,2]
[370446291,1752022253148,-156.025511,0.00021899,2]
[370446292,1752022253158,-4778.75970508,0.00021899,2]
[370446293,1752022253241,-460.0,0.00019178,2]
[370446294,1752022253250,-447.17659175,0.00019178,2]
[370446295,1752022331839,150.0,0.00016657,2]
[370446296,1752022397892,150.0,0.00016472,2]
[370446297,1752022649258,2500.0,0.00027397,120]
[370446298,1752022715472,528.320447,0.00013699,2]
[370446301,1752022880338,1220.00429551,0.00018151,2]
[370446302,1752023021429,300.0,0.000265,120]
[370446350,1752023432252,-300.0,0.0001822,2]
[370446351,1752023432262,-2375.19788194,0.00018221,2]
[370446352,1752023432274,-1077.901282,0.00018221,2]
[370446523,1752023438081,-1479.29119856,0.00018221,2]
[370446524,1752023438139,-19967.6096375,0.00018221,2]
[370446525,1752023438149,-395.00653619,0.00019078,2]
[370446526,1752023438162,-4829.31278544,0.00019078,2]
[370446527,1752023438172,-1253.16517448,0.00019078,2]
[370446528,1752023438182,-315.42,0.00019168,3]
[370446529,1752023438191,-150.36452721,0.00019173,2]
[370446530,1752023438201,-500.0,0.00019173,2]
[370446531,1752023438210,-500.0,0.00019177,2]
[370446532,1752023438219,-500.0,0.00019177,2]